bitfinex-derivatives/quotes_ETHF0:USTF0_20260123
["timestamp","ask_amount","ask_price","bid_price","bid_amount"]
[1769180728118,0.17172,2915.2,2913.5,3.433]
[1769180728313,0.3645251,2915.1,2913.5,3.433]
[1769180728521,0.1927951,2914.9,2913.5,3.433]
[1769180728708,0.3645451,2914.8,2912.8,0.17773359]
[1769180729015,0.36799161,2914.8,2912.8,10.15244551]
[1769180729516,0.36799161,2914.8,2912.8,0.35244551]
[1769180730107,0.1927951,2914.6,2912.8,0.18057551]
[1769180731918,0.00344651,2914.8,2912.9,0.17338533]
[1769180732223,0.00344651,2914.8,2913.6,0.17182]
[1769180732414,0.00344651,2914.8,2913.1,0.17338533]
[1769180732919,0.00344651,2914.8,2913.6,0.17338533]
[1769180733110,0.00344651,2914.8,2913.5,0.17182]
[1769180733820,0.00344651,2914.8,2913.5,0.34520533]
[1769180734219,0.00344651,2914.8,2913.7,0.17338533]
[1769180734416,0.16723551,2915.8,2912.9,1.35333955]
[1769180734417,0.16723551,2915.8,2913.8,0.17338533]
[1769180734616,0.94654702,2915.7,2913.9,0.17338533]
[1769180734823,0.16723551,2915.8,2913.9,0.17338533]
[1769180735010,0.16723551,2915.8,2912.8,0.00284192]
[1769180735011,3.60123551,2916.3,2914.2,0.17338533]
[1769180735216,0.94707971,2916.2,2914.2,0.17338533]
[1769180735410,0.94707971,2916.2,2914.6,0.00514315]
[1769180735411,0.94707971,2916.1,2914.6,0.00514315]
[1769180735624,0.16723551,2916.0,2914.6,0.00514315]
[1769180735820,0.16723551,2915.8,2914.6,0.00514315]
[1769180736019,0.16723551,2915.6,2914.6,0.00346809]
[1769180736325,0.94828179,2915.5,2913.7,0.17338533]
[1769180736618,0.94815391,2915.4,2913.7,0.17338533]
[1769180736927,0.16723551,2915.6,2913.7,0.17338533]
[1769180737119,0.94833031,2915.5,2913.7,0.17338533]
[1769180737323,0.94833031,2915.4,2913.7,0.17338533]
[1769180737526,0.00514315,2914.9,2913.7,0.17338533]
[1769180737917,0.00514315,2914.9,2913.6,3.434]
[1769180738217,0.00514315,2914.9,2913.7,0.34519533]
[1769180738418,0.00514315,2914.9,2913.7,0.17338533]
[1769180738818,0.16723551,2916.0,2913.7,0.17338533]
[1769180739024,0.94981199,2915.9,2914.0,0.00514315]
[1769180739224,0.94981199,2915.8,2914.3,0.17178]
[1769180739425,0.00440134,2916.2,2914.3,0.34516533]
[1769180739621,0.95039372,2916.1,2914.5,0.17176]
[1769180739827,0.95039372,2916.0,2914.5,0.17176]
[1769180740021,0.95039372,2915.9,2914.5,0.17176]
[1769180740218,0.95039372,2915.8,2914.6,0.34514533]
[1769180740525,0.00440134,2916.2,2915.1,0.34511533]
[1769180740726,0.00440134,2916.2,2915.1,0.34916196]
[1769180741131,0.00440134,2916.2,2915.1,0.17743196]
[1769180741325,0.00440134,2916.2,2915.1,0.00404663]
[1769180741326,0.95098508,2916.1,2915.1,0.00404663]
[1769180741622,0.00440134,2916.2,2915.1,0.00404663]
[1769180742029,0.95101254,2916.1,2915.1,0.00404663]
[1769180742229,0.95101254,2916.0,2915.1,0.00404663]
[1769180742429,0.95101254,2915.9,2915.1,0.00404663]
[1769180742624,0.00440134,2916.2,2915.1,0.00404663]
[1769180742825,0.95093023,2916.1,2915.1,0.00404663]
[1769180743025,0.00440134,2916.2,2915.1,0.00404663]
[1769180743625,0.00440134,2916.2,2915.1,0.17743196]
[1769180744135,0.00440134,2916.2,2915.1,0.34916196]
[1769180744824,0.16723551,2917.4,2915.5,0.34508533]
[1769180745128,0.95147154,2917.3,2915.6,0.34508533]
[1769180745430,0.16723551,2918.0,2916.1,0.34505533]
[1769180745629,0.95160982,2917.9,2916.2,0.00514315]
[1769180745822,0.95160982,2917.9,2916.5,0.34503533]
[1769180745823,0.00443938,2917.9,2916.5,0.34503533]
[1769180746135,0.00443938,2917.9,2916.6,0.17338533]
[1769180747032,1e-08,2917.9,2916.7,0.17338533]
[1769180747235,0.16723551,2918.6,2916.7,0.17338533]
[1769180747433,0.95027177,2918.5,2916.7,0.17338533]
[1769180747637,0.17151,2918.9,2916.7,0.17338533]
[1769180747935,1.11750559,2918.8,2916.7,0.17338533]
[1769180748135,0.16723551,2918.6,2916.7,0.17338533]
[1769180751436,0.16723551,2918.6,2916.8,0.17338533]
[1769180751636,0.17442117,2918.8,2916.8,0.17338533]
[1769180752936,0.17442117,2918.8,2916.9,0.17338533]
[1769180753135,0.17442117,2918.8,2917.1,0.17338533]
[1769180753136,0.00291117,2918.8,2917.1,0.17338533]
[1769180753335,0.00291117,2918.8,2917.1,0.34499533]
[1769180753537,0.00291117,2918.8,2917.3,0.34498533]
[1769180753737,0.00291117,2918.8,2917.4,0.34497533]
[1769180753937,0.00291117,2918.8,2917.3,0.00265241]
[1769180754437,0.00291117,2918.8,2917.8,0.00514315]
[1769180754637,0.17014668,2918.8,2917.8,0.00514315]
[1769180756037,0.16723551,2918.5,2917.3,0.00265241]
[1769180756240,0.00291117,2918.8,2917.3,0.00265241]
[1769180756434,0.00291117,2918.8,2917.3,0.17603774]
[1769180756636,0.00291117,2918.8,2917.4,0.34497533]
[1769180756837,0.00291117,2918.8,2917.5,0.17338533]
[1769180758538,0.00291117,2918.8,2917.3,0.00265241]
[1769180760642,0.33876551,2918.6,2917.3,0.00265241]
[1769180760942,0.17154,2918.3,2917.3,0.00265241]
[1769180761545,0.33877551,2918.3,2917.3,0.00265241]
[1769180762143,0.17155,2918.2,2917.3,0.00265241]
[1769180763246,0.17155,2918.1,2916.2,9.97338533]
[1769180763547,0.34588999,2917.8,2915.8,3.431]
[1769180763744,0.17431999,2917.7,2915.8,3.431]
[1769180764139,0.17431999,2917.2,2915.8,3.431]
[1769180764338,0.34588999,2917.9,2915.9,0.17306431]
[1769180764536,0.17431999,2917.7,2915.9,0.17306431]
[1769180764741,0.17431999,2917.7,2915.8,0.00300564]
[1769180764942,0.17431999,2917.4,2915.8,0.00300564]
[1769180766649,0.17159,2917.5,2915.8,0.17024032]
[1769180767245,0.1601953,2917.3,2915.8,0.00300564]
[1769180767443,0.1601953,2917.8,2915.8,0.17024032]
[1769180767644,3.432,2918.4,2915.8,0.17024032]
[1769180767645,1.1076199,2917.7,2915.8,0.17024032]
[1769180767846,0.1601953,2917.6,2915.8,0.17024032]
[1769180768243,0.1601953,2917.5,2915.8,0.17024032]
[1769180768449,0.1601953,2917.5,2915.8,0.00300564]
[1769180768847,0.1601953,2917.4,2915.8,0.00300564]
[1769180769052,0.3318353,2916.6,2914.8,0.16723468]
[1769180769549,1.10875167,2916.5,2914.4,3.60377]
[1769180769742,0.1601953,2916.5,2914.4,3.77100468]
[1769180769944,0.17164,2916.6,2914.7,0.16723468]
[1769180770142,0.00339919,2916.6,2914.8,0.33898468]
[1769180770344,0.00339919,2916.6,2914.9,0.16723468]
[1769180770558,0.00339919,2916.6,2915.3,0.16723468]
[1769180771451,0.00339919,2916.6,2915.4,0.33894468]
[1769180771650,0.00339919,2916.6,2915.5,0.16723468]
[1769180771954,0.00339919,2916.6,2915.5,0.33894468]
[1769180772453,0.00339919,2916.6,2915.6,0.16723468]
[1769180773551,0.00339919,2916.6,2915.2,0.33895468]
[1769180773754,0.1716,2917.3,2915.3,0.16723468]
[1769180773950,0.95034589,2917.2,2915.4,0.17171]
[1769180774156,0.1601953,2917.5,2915.6,0.16723468]
[1769180774357,0.95047085,2917.4,2915.6,0.16723468]
[1769180774656,0.95047085,2917.3,2915.6,0.16723468]
[1769180774855,0.95047467,2917.2,2915.6,0.16723468]
[1769180775054,0.00433566,2917.3,2915.6,0.16723468]
[1769180775459,0.00433566,2917.3,2915.9,0.16723468]
[1769180775958,0.00433566,2917.3,2916.1,0.16723468]
[1769180776256,0.1601953,2918.0,2916.3,0.17166]
[1769180776448,0.1601953,2917.8,2916.1,0.16723468]
[1769180776654,1.1108143,2917.7,2915.8,0.17168]
[1769180776955,0.1601953,2917.7,2915.8,0.17168]
[1769180777152,0.95066882,2917.6,2915.8,0.17168]
[1769180777356,0.95066882,2917.6,2915.7,13.39923468]
[1769180777357,0.1601953,2917.4,2915.2,3.77095468]
[1769180777558,0.1601953,2917.2,2915.3,0.16723468]
[1769180777858,0.1601953,2916.9,2915.2,0.17172]
[1769180779355,0.17164,2916.7,2914.8,3.59923468]
[1769180779560,0.3318253,2916.9,2914.9,0.17174]
[1769180779755,1.11021968,2916.8,2914.9,0.17174]
[1769180779960,0.17163,2916.9,2915.1,0.16723468]
[1769180780155,0.95000288,2916.8,2915.1,0.16723468]
[1769180780353,0.1601953,2917.3,2915.3,0.33895468]
[1769180780660,0.94990486,2917.2,2915.4,0.16723468]
[1769180780862,0.94990486,2917.1,2915.4,0.16723468]
[1769180781053,0.94990486,2917.0,2915.4,0.16723468]
[1769180781253,0.00371256,2917.6,2915.8,0.17169]
[1769180781455,0.95008321,2917.5,2915.8,0.17169]
[1769180781667,0.95008321,2917.4,2915.8,0.17169]
[1769180781854,0.00371256,2917.6,2915.9,0.33891468]
[1769180782054,0.00371256,2917.6,2916.0,0.16723468]
[1769180782256,0.95029474,2917.5,2916.0,0.16723468]
[1769180782454,0.00371256,2917.6,2916.0,0.16723468]
[1769180782660,0.95028836,2917.5,2916.0,0.16723468]
[1769180782860,0.00371256,2917.6,2916.0,0.16723468]
[1769180783060,0.95028787,2917.5,2916.0,0.16723468]
[1769180783263,0.00371256,2917.6,2916.1,0.16723468]
[1769180783651,0.00371256,2917.6,2915.0,0.16723468]
[1769180783855,1.11067778,2917.5,2915.6,0.1717]
[1769180784063,0.1601953,2917.5,2915.6,0.1717]
[1769180784258,0.95079556,2917.4,2915.6,0.1717]
[1769180784453,0.3317853,2917.5,2915.6,0.1717]
[1769180784651,0.95080017,2917.4,2915.6,0.1717]
[1769180784856,0.1601953,2917.2,2915.6,0.1717]
[1769180785257,0.95101384,2917.1,2915.6,0.1717]
[1769180785463,0.1601953,2917.2,2915.6,0.1717]
[1769180785669,0.95101821,2917.1,2915.4,0.16723468]
[1769180785965,0.1601953,2917.1,2915.4,0.16723468]
[1769180786165,0.1601953,2917.1,2915.1,13.232]
[1769180786166,0.1601953,2916.9,2915.2,0.17172]
[1769180786762,0.17161,2917.1,2915.3,0.33895468]
[1769180786964,0.9512134,2917.0,2915.4,0.16723468]
[1769180787162,0.1601953,2917.4,2915.5,0.16723468]
[1769180787364,0.1601953,2917.4,2915.6,0.16723468]
[1769180787365,0.95134423,2917.3,2915.6,0.16723468]
[1769180787565,0.95134423,2917.2,2915.6,0.16723468]
[1769180787863,0.95134423,2917.1,2915.6,0.16723468]
[1769180788160,0.95134423,2917.0,2915.6,0.16723468]
[1769180788365,0.17159,2917.5,2915.7,0.16723468]
[1769180788564,0.95278558,2917.4,2915.7,0.16723468]
[1769180788764,0.95278558,2917.3,2915.7,0.16723468]
[1769180788966,0.95278558,2917.2,2915.7,0.16723468]
[1769180789165,0.95278558,2917.1,2915.6,0.1717]
[1769180789365,0.95278558,2917.0,2915.2,0.16723468]
[1769180789561,0.95278558,2916.9,2915.2,0.16723468]
[1769180789762,0.95278558,2916.8,2915.2,0.16723468]
[1769180789963,0.95278558,2916.7,2915.2,0.16723468]
[1769180790162,0.1601953,2916.9,2915.2,0.16723468]
[1769180790362,0.95357615,2916.8,2915.0,0.17173]
[1769180790559,0.95357615,2916.7,2914.9,3.433]
[1769180790759,0.17166,2916.3,2914.7,0.00300206]
[1769180790967,0.3318653,2916.1,2914.7,0.00300206]
[1769180791164,0.95357615,2916.0,2914.7,0.00300206]
[1769180791468,0.95357615,2915.9,2914.7,0.00300206]
[1769180791667,0.3318653,2916.1,2914.7,0.00300206]
[1769180791858,0.95327808,2916.0,2914.7,0.00300206]
[1769180792061,0.95327808,2915.9,2914.7,0.00300206]
[1769180792368,0.3318653,2916.1,2914.7,0.00300206]
[1769180792569,0.95325092,2916.0,2914.7,0.00300206]
[1769180792770,0.95325092,2915.9,2914.7,0.00300206]
[1769180793066,0.1601953,2916.1,2914.7,0.00300206]
[1769180793259,0.16178264,2916.7,2914.9,0.16406848]
[1769180793464,0.95335298,2916.6,2914.9,0.16406848]
[1769180793669,0.95335298,2916.5,2914.9,0.16406848]
[1769180793866,0.95335298,2916.4,2915.1,0.16406848]
[1769180794066,0.17161,2917.1,2915.1,0.16406848]
[1769180794371,1.28358789,2917.0,2915.1,0.16406848]
[1769180794571,0.95332399,2916.9,2915.1,0.16406848]
[1769180794868,0.95332399,2916.8,2915.2,0.16406848]
[1769180795168,0.95332399,2916.7,2915.5,0.16406848]
[1769180795368,0.16178264,2917.3,2915.4,0.33577848]
[1769180795568,1.28370077,2917.2,2915.4,0.33577848]
[1769180795769,0.95340371,2917.1,2915.4,0.33577848]
[1769180795970,0.95340371,2917.0,2915.4,0.33577848]
[1769180796165,0.95340371,2916.9,2915.4,0.33577848]
[1769180796371,0.95340371,2916.8,2915.4,0.33577848]
[1769180796670,0.33338264,2917.3,2915.4,0.33577848]
[1769180796871,1.28369249,2917.2,2915.4,0.33577848]
[1769180797060,0.33338264,2917.3,2915.4,0.33577848]
[1769180797061,0.95339868,2917.1,2915.4,0.33577848]
[1769180797265,0.95339868,2917.0,2915.4,0.33577848]
[1769180797465,0.00371256,2917.6,2915.6,0.16406848]
[1769180797673,1.28378516,2917.5,2915.6,0.16406848]
[1769180797872,1.28378516,2917.4,2915.6,0.16406848]
[1769180798068,0.95347414,2917.3,2915.6,0.16406848]
[1769180798269,0.95347414,2917.2,2915.8,0.16406848]
[1769180798468,0.00371256,2917.6,2916.1,0.16406848]
[1769180798771,0.00371256,2917.6,2916.6,0.17164]
[1769180799069,2.56297111,2918.7,2916.6,0.33570848]
[1769180799269,1.28408053,2918.6,2916.6,0.33570848]
[1769180799463,1.28408053,2918.5,2916.6,0.33570848]
[1769180799663,1.28408053,2918.4,2916.6,0.33570848]
[1769180799861,0.95362984,2918.3,2916.8,0.33569848]
[1769180800174,0.33330264,2918.7,2916.8,0.33940824]
[1769180800471,0.95325075,2918.6,2917.0,0.16406848]
[1769180800771,2.40118847,2919.6,2917.5,0.33565848]
[1769180800970,0.33029849,2919.5,2917.6,0.17158]
[1769180801172,1.11532706,2919.7,2917.8,0.16406848]
[1769180801173,0.95354442,2919.4,2917.8,0.16406848]
[1769180801473,7.96430014,2920.9,2918.2,0.16406848]
[1769180801474,0.16178264,2920.2,2918.2,0.16406848]
[1769180801676,1.11451312,2920.1,2918.2,0.16406848]
[1769180801975,0.95273048,2920.0,2918.2,0.16406848]
[1769180803172,0.16178264,2920.1,2918.2,3.59606848]
[1769180803374,1.11148348,2920.0,2918.2,3.59606848]
[1769180803576,0.16178264,2919.9,2918.0,13.232]
[1769180803868,0.16178264,2919.9,2918.1,0.16406848]
[1769180804478,3.26158278,2920.8,2918.1,0.16406848]
[1769180804479,0.16178264,2920.6,2918.1,0.16406848]
[1769180804676,1.1105128,2920.5,2918.1,0.16406848]
[1769180804873,0.16178264,2920.5,2918.5,0.16406848]
[1769180805077,0.16178264,2921.0,2918.9,0.16406848]
[1769180805371,0.16178264,2921.0,2919.0,0.16406848]
[1769180806374,0.16178264,2920.9,2918.9,0.0031412]
[1769180806778,0.16178264,2920.7,2918.9,0.0031412]
[1769180807875,0.16178264,2920.7,2918.9,0.16720968]
[1769180808376,0.16178264,2921.3,2918.9,0.16720968]
[1769180808779,0.16178264,2921.3,2919.3,0.16406848]
[1769180809374,0.16178264,2921.3,2919.4,0.16406848]
[1769180809568,0.33312264,2921.8,2919.5,0.16406848]
[1769180810286,0.00514315,2920.9,2919.5,0.16406848]
[1769180810472,0.00514315,2920.9,2919.6,0.17146]
[1769180810674,0.00514315,2920.9,2919.6,0.33552848]
[1769180810967,0.00514315,2920.9,2919.6,0.16406848]
[1769180811168,0.00514315,2920.9,2919.4,3.43]
[1769180811572,0.00514315,2920.9,2919.2,9.8]
[1769180811876,0.16692579,2920.9,2919.0,3.43]
[1769180812076,0.16178264,2920.7,2918.9,0.0031412]
[1769180812467,0.00514315,2920.9,2918.9,0.16720968]
[1769180812673,0.00514315,2920.9,2919.0,0.16406848]
[1769180813275,0.00514315,2920.9,2919.0,0.33556848]
[1769180813474,0.00514315,2920.9,2919.1,0.16406848]
[1769180814277,0.00514315,2920.9,2919.4,0.16406848]
[1769180816577,0.00514315,2920.9,2919.5,0.17147]
[1769180817377,0.00514315,2920.9,2918.9,0.0031412]
[1769180817574,0.16692579,2920.9,2919.1,3.429]
[1769180817774,0.16178264,2920.7,2918.9,3.6036512]
[1769180817969,0.16178264,2920.7,2918.9,0.0031412]
[1769180818271,0.16178264,2920.5,2918.9,0.0031412]
[1769180818470,0.17144,2920.1,2918.9,0.0031412]
[1769180818779,0.33318264,2920.7,2918.9,0.0031412]
[1769180818975,0.33319264,2920.6,2918.9,0.0031412]
[1769180819181,0.16178264,2920.3,2918.9,0.0031412]
[1769180819379,0.33321264,2920.3,2918.9,0.0031412]
[1769180819677,0.33321264,2920.2,2918.9,0.0031412]
[1769180819876,0.16178264,2920.1,2918.9,0.0031412]
[1769180820278,0.16178264,2920.6,2918.9,0.0031412]
[1769180820577,0.16178264,2920.1,2918.9,0.0031412]
[1769180820777,0.33322264,2920.0,2918.9,0.0031412]
[1769180821280,0.33319264,2920.6,2918.9,0.0031412]
[1769180821468,6.498,2920.7,2918.9,0.0031412]
[1769180821469,0.00514315,2920.9,2919.0,0.1715]
[1769180821668,0.00514315,2920.9,2919.1,0.16406848]
[1769180822281,0.00514315,2920.9,2919.1,0.33555848]
[1769180822579,0.32630571,2920.8,2918.9,0.0031412]
[1769180822780,0.32630571,2920.8,2918.9,0.15898729]
[1769180823583,0.32630571,2920.8,2918.9,0.33048729]
[1769180823780,0.1714,2920.8,2919.0,0.15584609]
[1769180823987,0.00514315,2920.9,2919.1,0.15584609]
[1769180824879,0.00514315,2920.9,2919.3,0.15584609]
[1769180825082,0.00514315,2920.9,2919.4,3.75632609]
[1769180825279,0.00514315,2920.9,2919.5,0.15584609]
[1769180825785,0.00514315,2920.9,2919.7,0.32730609]
[1769180827281,0.00514315,2920.9,2919.2,0.15414504]
[1769180827477,0.00514315,2920.9,2919.2,3.58314504]
[1769180827683,0.00514315,2920.9,2919.2,3.75463504]
[1769180827884,0.00514315,2920.9,2919.4,0.15414504]
[1769180828284,0.00514315,2920.9,2919.5,0.32561504]
[1769180828485,0.15453168,2920.9,2919.0,0.15414504]
[1769180828687,0.15453168,2920.9,2919.0,0.32564504]
[1769180829082,0.95134017,2920.8,2919.0,0.32564504]
[1769180829280,0.95134017,2920.7,2919.0,0.32564504]
[1769180829482,0.00514315,2920.9,2919.1,0.15414504]
[1769180830178,0.00514315,2920.9,2919.3,0.32562504]
[1769180830580,0.95281959,2920.8,2918.9,3.6036512]
[1769180830891,0.95281959,2920.7,2918.9,3.75779624]
[1769180831090,0.95281959,2920.6,2918.9,3.75779624]
[1769180831289,0.95281959,2920.5,2918.9,3.75779624]
[1769180831485,0.32078853,2920.8,2918.9,0.32879624]
[1769180831692,1.10324363,2920.7,2918.9,0.32879624]
[1769180831991,1.27465363,2920.6,2918.9,0.0031412]
[1769180832191,0.9538551,2920.5,2918.9,0.0031412]
[1769180833083,1.10324363,2920.5,2918.9,0.0031412]
[1769180833283,2.40633162,2920.9,2918.9,0.0031412]
[1769180833284,0.32082853,2920.1,2918.9,0.0031412]
[1769180833484,0.14938853,2919.9,2918.7,3.428]
[1769180833692,0.9538551,2919.8,2918.7,3.428]
[1769180834591,0.9569963,2919.8,2918.7,3.43040505]
[1769180834786,0.32085853,2919.6,2918.7,0.00240505]
[1769180834991,1.27471363,2919.5,2917.9,2.841]
[1769180835288,0.9538551,2919.4,2917.9,2.841]
[1769180835689,0.14938853,2919.3,2917.6,3.428]
[1769180835882,1.27473363,2919.2,2917.6,3.428]
[1769180836188,0.14938853,2919.0,2917.6,3.43209257]
[1769180836487,0.9538551,2918.9,2917.6,3.43209257]
[1769180836795,0.9538551,2918.8,2917.6,3.43209257]
[1769180836993,0.14938853,2919.0,2917.6,3.43209257]
[1769180837291,0.14938853,2918.8,2917.6,3.43209257]
[1769180837695,0.14938853,2918.6,2917.6,0.00409257]
[1769180837895,0.95201812,2918.5,2917.6,0.00409257]
[1769180838196,0.95201812,2918.4,2917.6,0.00409257]
[1769180838391,0.32091853,2918.6,2917.6,0.00409257]
[1769180838584,0.95042179,2918.5,2917.6,0.00409257]
[1769180838787,0.95042179,2918.4,2917.6,0.00409257]
[1769180838989,0.32091853,2918.6,2916.6,0.15414504]
[1769180838990,0.95036433,2918.3,2916.6,0.15414504]
[1769180839289,0.14938853,2918.1,2916.2,3.429]
[1769180839497,0.32093853,2918.1,2916.2,3.429]
[1769180839695,0.0031412,2919.8,2916.2,10.41491269]
[1769180839887,0.16148799,2921.2,2918.8,0.17151]
[1769180840082,2.66856688,2921.1,2918.9,2.849]
[1769180840291,1.72982221,2921.1,2918.9,2.849]
[1769180840592,0.16122434,2920.9,2919.1,0.17149]
[1769180840897,0.16538077,2920.9,2919.1,0.17437248]
[1769180843297,1.72982221,2920.8,2919.1,0.17437248]
[1769180844094,1.72982221,2920.7,2919.2,0.0020713]
[1769180844289,1.72982221,2920.8,2919.2,0.0020713]
[1769180844491,0.15995418,2921.9,2919.9,0.17145]
[1769180844702,0.15995418,2921.9,2919.9,9.97145]
[1769180845393,0.00514315,2921.2,2920.0,0.17144]
[1769180846191,0.00514315,2921.2,2920.0,6.278]
[1769180846392,0.16229537,2921.9,2920.4,0.17142]
[1769180846696,1.72982221,2921.8,2920.4,0.17142]
[1769180847292,1.89158763,2921.7,2920.3,0.00514315]
[1769180847486,0.16176542,2921.6,2920.3,0.00514315]
[1769180848398,0.16185708,2921.4,2920.3,0.00514315]
[1769180849199,0.1670058,2921.1,2919.1,0.00288248]
[1769180850901,0.16200518,2920.9,2919.1,0.00288248]
[1769180851391,1.90121221,2921.0,2919.1,0.00288248]
[1769180851392,1.89182739,2920.8,2919.1,0.00288248]
[1769180851796,0.16200518,2920.7,2919.1,0.00288248]
[1769180852395,1.72982221,2920.6,2919.1,0.00288248]
[1769180854294,0.16177108,2920.5,2919.1,0.00288248]
[1769180854701,1.72982221,2920.4,2919.1,0.00288248]
[1769180855801,0.16177628,2920.3,2919.1,0.00288248]
[1769180856401,0.16176248,2920.1,2919.1,0.00288248]
[1769180856790,1.89158978,2920.0,2919.1,0.00288248]
[1769180857001,0.16176757,2920.0,2919.1,0.00288248]
[1769180857196,1.72982221,2919.9,2919.1,0.00288248]
[1769180857999,0.16176757,2920.5,2919.1,0.00288248]
[1769180858298,1.72982221,2920.4,2919.1,0.00288248]
[1769180858502,0.16176757,2920.5,2919.1,0.00288248]
[1769180858703,1.72982221,2920.4,2919.1,0.00288248]
[1769180859298,1.89115451,2920.4,2919.1,0.00288248]
[1769180859699,0.1613323,2920.4,2919.1,0.00288248]
[1769180860301,0.16111921,2920.2,2919.1,0.00288248]
[1769180860703,0.16111921,2920.0,2919.1,0.00288248]
[1769180862004,0.16249668,2919.8,2918.9,3.428]
[1769180862801,0.16249668,2919.8,2918.9,0.00418846]
[1769180863007,0.16530415,2919.8,2918.9,0.00418846]
[1769180863207,0.00280747,2919.8,2918.9,0.00418846]
[1769180863703,0.16105985,2919.7,2918.9,0.00418846]
[1769180864104,0.16108036,2919.5,2918.1,2.87]
[1769180864699,0.16108036,2919.3,2918.1,2.87]
[1769180865002,0.00514315,2919.1,2918.1,2.87247395]
[1769180865502,1.72982221,2919.0,2918.1,2.87247395]
[1769180865702,0.00514315,2919.1,2918.1,2.87247395]
[1769180866112,0.16389213,2919.8,2918.1,2.87247395]
[1769180866300,1.72982221,2919.7,2918.6,0.17152]
[1769180867607,1.89195414,2919.7,2918.3,0.00514315]
[1769180867801,0.16213193,2919.6,2918.3,0.00514315]
[1769180868211,0.16200147,2919.4,2918.3,0.00514315]
[1769180868906,0.16200516,2919.2,2918.1,0.00247395]
[1769180869212,0.15943359,2919.0,2918.1,0.00247395]
[1769180869799,0.15943359,2918.8,2918.1,0.00247395]
[1769180870004,0.15943359,2918.8,2917.3,3.429]
[1769180870204,0.16106795,2918.6,2917.3,3.429]
[1769180870918,0.16106795,2918.6,2917.3,3.43276678]
[1769180871117,2.07370395,2921.0,2917.4,9.137]
[1769180871414,0.16107029,2921.8,2919.5,2.96382884]
[1769180871608,0.16107029,2921.8,2920.1,0.17143]
[1769180872012,0.16107029,2921.8,2920.2,0.17143]
[1769180872216,0.16495633,2921.8,2920.2,0.17423734]
[1769180872608,0.16495633,2921.8,2920.7,0.00513426]
[1769180872812,0.16495633,2921.8,2920.7,2.87313426]
[1769180874018,0.16495633,2921.8,2920.7,0.00513426]
[1769180876223,0.00388604,2921.8,2920.7,0.00513426]
[1769180876427,0.00388604,2921.8,2920.8,0.17139]
[1769180877124,0.15977096,2922.3,2920.8,0.17139]
[1769180877515,0.15977096,2922.3,2920.9,6.294]
[1769180877911,0.15977096,2922.3,2921.0,0.17138]
[1769180878122,0.0029424,2922.3,2921.0,0.17138]
[1769180879121,0.0029424,2922.3,2921.1,6.293]
[1769180879323,0.16281955,2922.3,2920.7,0.00513426]
[1769180879827,0.16281955,2922.3,2920.7,0.17653426]
[1769180880326,0.16281955,2922.3,2920.8,2.865]
[1769180880620,0.16281955,2922.3,2920.7,0.17653426]
[1769180881028,0.16281955,2922.3,2920.7,0.00513426]
[1769180883428,0.16281955,2922.3,2920.7,3.43213426]
[1769180883629,0.16281955,2922.3,2920.7,0.00513426]
[1769180885528,0.16165653,2922.1,2920.7,0.00513426]
[1769180885735,0.15768856,2921.5,2919.1,0.17149]
[1769180885932,0.15768856,2921.4,2919.2,0.17149]
[1769180886236,0.15768856,2921.4,2919.3,0.17148]
[1769180886237,0.15768921,2921.3,2919.3,0.17148]
[1769180886436,0.15768921,2921.3,2919.1,16.087]
[1769180886437,0.15768921,2921.3,2919.4,0.17148]
[1769180886737,0.15768921,2921.3,2919.5,2.86]
[1769180887038,0.15768921,2921.3,2919.4,0.00281954]
[1769180887039,0.15768921,2921.3,2919.7,0.17146]
[1769180887237,0.15768921,2921.3,2919.5,3.427]
[1769180888332,0.15768921,2921.3,2919.4,0.00281954]
[1769180889340,0.15811947,2921.0,2919.4,0.00281954]
[1769180891036,0.15876298,2920.8,2919.4,0.00281954]
[1769180891236,0.33016298,2920.8,2919.4,0.00281954]
[1769180891436,0.15876298,2920.7,2919.4,0.00281954]
[1769180893842,0.15486045,2920.1,2918.0,0.17155]
[1769180894742,0.1573257,2920.1,2918.2,0.17155]
[1769180895734,0.15651693,2920.0,2918.0,3.43221675]
[1769180896441,0.15651693,2920.0,2918.0,0.00421675]
[1769180896741,0.15651837,2919.9,2918.0,0.00421675]
[1769180896936,0.15651837,2919.8,2918.0,0.00421675]
[1769180897138,0.15651837,2919.7,2918.0,0.00421675]
[1769180898836,0.1562749,2919.6,2918.0,0.00421675]
[1769180899834,0.1562749,2919.6,2918.1,0.17155]
[1769180900039,0.1562749,2919.6,2918.2,0.17155]
[1769180901134,0.1587572,2920.1,2918.4,0.17153]
[1769180901745,0.1587572,2920.1,2918.5,0.17153]
[1769180902545,0.1587572,2920.1,2918.0,0.00421675]
[1769180902739,0.1587572,2920.1,2918.0,0.17577675]
[1769180902940,0.17146,2919.7,2918.0,0.00421675]
[1769180903140,0.15625569,2919.6,2918.0,0.00421675]
[1769180904546,0.15671414,2921.8,2918.1,0.65]
[1769180904733,0.15671414,2921.8,2918.0,6.86851078]
[1769180904734,0.15671414,2921.8,2920.0,0.17144]
[1769180904940,0.15671414,2921.8,2920.3,0.17142]
[1769180905134,0.15671539,2922.3,2920.1,16.092]
[1769180905544,0.15671539,2922.3,2920.2,6.294]
[1769180905734,0.16005489,2922.3,2920.2,6.294]
[1769180905940,0.16005489,2922.3,2920.7,0.1714]
[1769180906941,0.1559427,2922.1,2920.7,0.1714]
[1769180907141,0.1559427,2922.1,2920.6,3.428]
[1769180907338,0.1559427,2922.1,2920.1,9.80444527]
[1769180907640,0.1559427,2922.1,2920.2,6.46543]
[1769180907848,0.1559427,2922.1,2920.3,6.294]
[1769180908142,0.1559427,2922.1,2920.3,3.428]
[1769180908344,0.1559427,2922.1,2920.2,0.17143]
[1769180908551,0.15840795,2922.1,2920.1,9.80444527]
[1769180908752,0.1559427,2922.1,2920.1,13.23244527]
[1769180908942,0.1559427,2922.1,2920.1,9.80444527]
[1769180909143,0.1559427,2922.1,2920.1,3.43244527]
[1769180910146,0.15523743,2921.6,2920.1,0.00444527]
[1769180911046,0.15523902,2921.2,2920.1,0.00444527]
[1769180911345,0.15523902,2920.9,2920.1,0.00444527]
[1769180911551,0.00246525,2920.8,2920.1,0.00444527]
[1769180911854,0.15524734,2920.8,2918.7,0.17152]
[1769180912151,0.15524734,2920.8,2918.8,0.17151]
[1769180912947,0.15524734,2920.8,2918.8,0.17578371]
[1769180913251,0.15524734,2920.8,2918.9,6.298]
[1769180913647,0.15524734,2920.8,2919.2,0.17149]
[1769180914550,0.15524734,2920.8,2919.3,9.8]
[1769180914947,0.15524734,2920.8,2919.2,0.17149]
[1769180915548,0.15524734,2920.8,2919.2,9.97149]
[1769180915741,0.15524734,2920.8,2919.2,13.39949]
[1769180916251,0.15524734,2920.8,2919.2,0.17149]
[1769180916451,0.15524734,2920.8,2919.2,2.88849]
[1769180916755,0.15524734,2920.8,2919.4,0.17148]
[1769180918653,0.15524734,2920.8,2919.1,9.8]
[1769180918956,0.15524734,2920.8,2919.2,2.88]